Cogmind - Beta 12 X6 @@@ ROGUE MODE // 2023.02.19 @ 01:37:57 // Winter2019/RPGLIKE Player: ArabianSandBoa Result: Destroyed by H-55 Commando with Gauss Rifle Performance ------------- Evolutions (2) 1000 Regions Visited (5) 1000 Robots Destroyed (36) 180 Value Destroyed (1424) 1424 Prototype IDs (3) 60 Alien Tech Used (0) 0 Bonus (148) 148 TOTAL SCORE: 3812 Bonus ------- High Alert Combat Kills 148 Cogmind --------- Core Integrity 0/800 Matter 214/300 Energy 210/210 System Corruption 0% Temperature Cool (0) Movement Flying (34) Location -8/Materials Parts ------- > --- POWER (1) -------- Light Nuclear Core > --- PROPULSION (3) --- Improved Flight Unit Improved Flight Unit Improved Flight Unit > --- UTILITY (4) ------ Machine Analyzer Advanced Targeting Computer Armor Integrity Analyzer Improved Propulsion Shielding > --- WEAPON (2) ------- Autogun Autogun > --- INVENTORY (2) ---- Improved Sensor Array Shock Absorption System Peak State ------------ > --- POWER ------------ Light Nuclear Core > --- PROPULSION ------- Improved Flight Unit Improved Flight Unit Improved Flight Unit > --- UTILITY ---------- Advanced Targeting Computer Armor Integrity Analyzer Bomb Drone Bay > --- WEAPON ----------- Autogun Autogun > --- INVENTORY -------- Improved Sensor Array Shock Absorption System [Rating: 37] Favorites ----------- Power Ion Engine Engine Ion Engine Power Core Light Nuclear Core Propulsion Improved Flight Unit Wheel Wheel Flight Unit Improved Flight Unit Utility Bomb Drone Bay Device Bomb Drone Bay Processor Armor Integrity Analyzer Protection Utility Shielding Weapon Autogun Energy Gun EM Pulse Gun Ballistic Gun Autogun Launcher Rocket Launcher Build | -11 -10 -10 -9 -9 -8 ------- Run | Jun Mat Min Mat Min Mat Slots Evolved 6 | . . 3 . 1 2 Power . | . . . . . . Propulsion 2 | . . 1 . 1 . Utility 3 | . . 1 . . 2 Weapon 1 | . . 1 . . . Parts Attached 24 | 4 1 2 6 2 9 Power 2 | 1 . . . . 1 Engine 1 | 1 . . . . . Core 1 | . . . . . 1 Reactor . | . . . . . . Propulsion 7 | 1 . . 4 1 1 Treads . | . . . . . . Leg . | . . . . . . Wheel 1 | 1 . . . . . Hover . | . . . . . . Flight 6 | . . . 4 1 1 Utility 7 | . 1 1 . . 5 Device 2 | . . 1 . . 1 Storage . | . . . . . . Processor 3 | . . . . . 3 Hackware . | . . . . . . Protection 2 | . 1 . . . 1 Artifact . | . . . . . . Weapon 8 | 2 . 1 2 1 2 Energy Gun 2 | 1 . . 1 . . Energy Cannon . | . . . . . . Ballistic Gun 5 | 1 . . 1 1 2 Ballistic Cannon . | . . . . . . Launcher 1 | . . 1 . . . Special Weapon . | . . . . . . Impact Weapon . | . . . . . . Slashing Weapon . | . . . . . . Piercing Weapon . | . . . . . . Special Melee Weapon . | . . . . . . Unidentified Prototypes 1 | . . 1 . . . Parts Lost . | . . . . . . Power . | . . . . . . Propulsion . | . . . . . . Utility . | . . . . . . Weapon . | . . . . . . Highest Loss Streak . | . . . . . . To Critical Strikes . | . . . . . . Average Slot Usage (%) 80 | . 96 59 72 86 91 Engine 14 | . 25 14 14 12 6 Wheel 7 | . 25 14 4 . . Flight 18 | . . . 19 36 30 Device 9 | . . 7 14 12 10 Processor 3 | . . . . . 16 Protection 5 | . 21 7 . . 2 Energy Gun 6 | . 25 1 4 . . Ballistic Gun 11 | . . . 10 24 20 Launcher 3 | . . 13 4 . . Naked Turns . | . . . . . . Heaviest Build 20 | 7 8 17 20 19 20 Greatest Support 25 | 10 10 10 20 25 25 Greatest Overweight (x) 1 | . . 1 1 . . Average Overweight (x) . | . . . . . . Largest Inventory Capacity 2 | . . 1 1 1 2 Average Capacity . | . . . 1 1 1 Most Carried 2 | . . 1 1 1 2 Average Carried . | . . . . . 1 Final Capacity 2 | . . 1 1 1 2 Final Carried 2 | . . 1 1 1 2 Class Distribution -------------------- 100% | Mutant Dominant Class ---------------- Mutant | -10/Materials Mutant | -10/Mines Mutant | -9/Materials Mutant | -9/Mines Mutant | -8/Materials Resources | -11 -10 -10 -9 -9 -8 ----------- Run | Jun Mat Min Mat Min Mat Matter Collected 1093 | 246 . 3 380 100 364 Remotely . | . . . . . . Salvage Created 1192 | 63 13 107 150 156 703 Parts 74 | 3 2 8 25 6 30 Haulers Intercepted . | . . . . . . Recyclers Shooed 1 | . . . . 1 . Parts Field Recycled . | . . . . . . Retrieved Matter . | . . . . . . Parts Self-Destructed . | . . . . . . Prevented . | . . . . . . Kills | -11 -10 -10 -9 -9 -8 ------- Run | Jun Mat Min Mat Min Mat Combat Hostiles Destroyed 26 | . . 6 10 . 10 Guns 14 | . . . 5 . 9 AOE 12 | . . 6 5 . 1 Classes Destroyed 9 | 1 1 3 2 . 2 Worker 1 | . . . 1 . . Builder 1 | . 1 . . . . Tunneler 3 | . . 1 . 2 . Recycler 2 | 1 . . . 1 . Operator 1 | . . . . . 1 Watcher 2 | . . . . . 2 Swarmer 8 | . . 3 4 . 1 Grunt 12 | . . 3 2 . 7 Sentry 6 | . . . 4 . 2 Best Kill Streak 5 | 1 1 4 5 2 5 Combat Bots Only 5 | . . 3 5 . 4 Max Kills in Single Turn 3 | 1 1 2 3 1 2 Gunslinging . | . . . . . . Exploded 2 | . . 2 2 . 1 Melee . | . . . . . . Uniques/NPCs Destroyed . | . . . . . . Combat | -11 -10 -10 -9 -9 -8 -------- Run | Jun Mat Min Mat Min Mat Damage Taken 1651 | . 199 25 696 . 731 Core 1328 | . 169 19 552 . 588 Absorbed by Shields . | . . . . . . Redirected to Core 1108 | . 98 19 482 . 509 Core Remaining (%) 77 | 100 . 83 . 49 . Volleys Fired 149 | 5 32 8 49 10 45 Largest 2 | 1 1 1 2 2 2 Hottest 68 | 40 40 33 68 46 46 Shots Fired 219 | 5 32 8 64 20 90 Gun 204 | 5 32 . 57 20 90 Cannon . | . . . . . . Launcher 15 | . . 8 7 . . Special . | . . . . . . Kinetic 144 | 2 . . 32 20 90 Thermal . | . . . . . . Explosive 15 | . . 8 7 . . Electromagnetic 60 | 3 32 . 25 . . Robot Hit Streak 12 | 3 . 3 11 6 12 Robot Miss Streak 3 | 1 . 1 2 3 3 Penetration Max . | . . . . . . Secondary Targets 4 | . . . 1 . 3 Max Gunslinging Chain 1 | . . . 1 . 1 Shots Hit Robots 94 | 4 . 3 31 6 50 Core Hits 50 | 2 1 7 19 3 18 Critical Kills 2 | . . . . . 2 Critical Parts Destroyed 2 | . . . 1 . 1 Critical Strikes 4 | . . . 1 . 3 Destroy 4 | . . . 1 . 3 Melee Attacks . | . . . . . . Impact . | . . . . . . Slashing . | . . . . . . Piercing . | . . . . . . Sneak Attacks . | . . . . . . Combat Hostiles . | . . . . . . Follow-up Attacks . | . . . . . . Damage Inflicted 2528 | 48 13 466 969 106 926 Guns 1571 | 48 13 . 478 106 926 Cannons . | . . . . . . Explosions 957 | . . 466 491 . . Melee . | . . . . . . Ramming . | . . . . . . Kinetic 1353 | 23 . . 298 106 926 Thermal 64 | . . . 64 . . Explosive 893 | . . 466 427 . . Electromagnetic 218 | 25 13 . 180 . . Impact . | . . . . . . Slashing . | . . . . . . Piercing . | . . . . . . Highest Corruption . | . . . . . . Average Corruption . | . . . . . . Corruption Purged . | . . . . . . Corruption Blocked . | . . . . . . Overload Shots . | . . . . . . Overflow Damage 8 | . . 8 . . . Projectiles . | . . . . . . Explosions 8 | . . 8 . . . Melee . | . . . . . . Knockbacks . | . . . . . . Impact . | . . . . . . Kinetic . | . . . . . . Secondary . | . . . . . . Self-Inflicted Damage 136 | . . . 112 . 24 Shots 5 | . . . 4 . 1 Rammed . | . . . . . . Targets Rammed . | . . . . . . Kicked . | . . . . . . Crushed . | . . . . . . Highest Temperature 25 | . 1 2 25 . . Average Temperature 8 | . 1 2 10 . . Received Heat Transfer 435 | . 111 6 228 . 90 Siege Activations . | . . . . . . Robots Corrupted . | . . . . . . Combat Hostiles . | . . . . . . Parts Fried . | . . . . . . Impact Corruptions . | . . . . . . Robots Melted . | . . . . . . Combat Hostiles . | . . . . . . Parts Melted . | . . . . . . Heat Transferred 100 | . . . 100 . . Parts Sabotaged . | . . . . . . Parts Stolen . | . . . . . . Parts Stripped . | . . . . . . Power Chain Reactions 2 | . . . 2 . . Missiles Intercepted . | . . . . . . Alert | -11 -10 -10 -9 -9 -8 ------- Run | Jun Mat Min Mat Min Mat Peak Influence 983 | 5 275 316 983 458 590 Initial 382 | . 3 106 122 382 178 Average 340 | 1 121 149 580 430 318 Maximum Alert Level 3 | . 1 1 3 2 2 Low Security (%) 34 | 100 73 71 13 . 15 Level 1 27 | . 26 28 14 20 54 Level 2 24 | . . . 24 79 30 Level 3 13 | . . . 47 . . Level 4 . | . . . . . . Level 5 . | . . . . . . High Security . | . . . . . . Max Security . | . . . . . . Squads Dispatched 14 | . 2 1 7 . 4 Investigation 10 | . 2 1 5 . 2 Extermination . | . . . . . . Reinforcement 4 | . . . 2 . 2 Assault . | . . . . . . Garrison . | . . . . . . Intercept . | . . . . . . Searches Triggered . | . . . . . . Construction Impeded . | . . . . . . Haulers Reinforced . | . . . . . . Active Scanning Responses . | . . . . . . Cargo Convoy Interrupts . | . . . . . . Stealth | -11 -10 -10 -9 -9 -8 --------- Run | Jun Mat Min Mat Min Mat Distress Signals 6 | . . . 3 . 3 Communications Jammed . | . . . . . . Distress Signals . | . . . . . . Times Spotted 62 | . 10 6 27 . 19 Peak Tracking Total 8 | . 6 3 8 . 6 Tactical Retreats 7 | . 1 . 6 . . Traps | -11 -10 -10 -9 -9 -8 ------- Run | Jun Mat Min Mat Min Mat Traps Triggered 2 | . . . 1 . 1 Indirectly . | . . . . . . Trap Hack Attempts . | . . . . . . Triggered . | . . . . . . Disarmed . | . . . . . . Reprogrammed . | . . . . . . Reused . | . . . . . . Traps Extracted . | . . . . . . Installed 3 | . . . . 3 . Triggered . | . . . . . . Machines | -11 -10 -10 -9 -9 -8 ---------- Run | Jun Mat Min Mat Min Mat Machines Disabled 35 | . 8 1 15 4 7 Max in Single Turn 3 | . 1 1 3 1 1 Machines Repaired 2 | . . . 2 . . Machines Sabotaged . | . . . . . . Overloaded Fab Kills . | . . . . . . Hacking | -11 -10 -10 -9 -9 -8 --------- Run | Jun Mat Min Mat Min Mat Machines Accessed 13 | . 3 2 5 . 3 Terminals 10 | . 2 1 5 . 2 Fabricators . | . . . . . . Repair Stations . | . . . . . . Recycling Units 1 | . 1 . . . . Scanalyzers 1 | . . . . . 1 Garrison Access . | . . . . . . Total Hacks 42 | . 8 3 22 . 9 Successful 24 | . 3 2 12 . 7 Failed 18 | . 5 1 10 . 2 Catastrophic 2 | . 1 . 1 . . Database Lockouts . | . . . . . . Manual 28 | . 5 2 15 . 6 Terminals 39 | . 7 2 22 . 8 Fabricators . | . . . . . . Repair Stations . | . . . . . . Recycling Units 1 | . 1 . . . . Scanalyzers 1 | . . . . . 1 Garrison Access . | . . . . . . Terminal Hacks 15 | . 1 1 8 . 5 Robot Analysis 4 | . 1 . 1 . 2 Prototype ID Bank 1 | . . . 1 . . Open Door 1 | . . 1 . . . Branch Access Points 1 | . . . . . 1 Alert Level 1 | . . . . . 1 Dispatch Records 1 | . . . 1 . . Hauler Manifests 1 | . . . 1 . . Registered Components 1 | . . . 1 . . Registered Prototypes 1 | . . . 1 . . Zone Layout 3 | . . . 2 . 1 Fabricator Hacks . | . . . . . . Repair Station Hacks . | . . . . . . Recycling Unit Hacks . | . . . . . . Scanalyzer . | . . . . . . Garrison Access Hacks . | . . . . . . Unauthorized Hacks 9 | . 2 1 4 . 2 Terminals 7 | . 1 1 4 . 1 Botnet 2 | . . . 1 . 1 Sabotage 5 | . 1 1 3 . . Fabricators . | . . . . . . Repair Stations . | . . . . . . Recycling Units 1 | . 1 . . . . Tunnel 1 | . 1 . . . . Scanalyzers 1 | . . . . . 1 Extract 1 | . . . . . 1 Garrison Access . | . . . . . . Data Cores Recovered . | . . . . . . Used . | . . . . . . Hacking Detections 8 | . 2 . 4 . 2 Full Trace Events 3 | . 1 . 1 . 1 Feedback Events . | . . . . . . Feedback Blocked . | . . . . . . Robot Schematics Acquired . | . . . . . . Robots Built . | . . . . . . Authchips . | . . . . . . Time . | . . . . . . Total Robot Build Rating . | . . . . . . Part Schematics Acquired 12 | . . . . . 12 Parts Built . | . . . . . . Authchips . | . . . . . . Time . | . . . . . . Total Part Build Rating . | . . . . . . Parts Repaired . | . . . . . . Time . | . . . . . . Parts Recycled . | . . . . . . Recycled Matter . | . . . . . . Retrieved Matter . | . . . . . . Retrieved Components . | . . . . . . Parts Scanalyzed . | . . . . . . Part Schematics Acquired . | . . . . . . Parts Damaged . | . . . . . . Bothacking | -11 -10 -10 -9 -9 -8 ------------ Run | Jun Mat Min Mat Min Mat Used RIF Installer . | . . . . . . Robots Hacked . | . . . . . . Non-combat . | . . . . . . Combat . | . . . . . . Robot Hacks Applied . | . . . . . . Relay Couplers Released . | . . . . . . Fabnet Peak Effective % . | . . . . . . Robots Rewired . | . . . . . . Allies Hacked . | . . . . . . Hacks Repelled . | . . . . . . Allies | -11 -10 -10 -9 -9 -8 -------- Run | Jun Mat Min Mat Min Mat Total Allies . | . . . . . . Largest Group . | . . . . . . Highest-Rated Group . | . . . . . . Highest-Rated Ally . | . . . . . . Total Orders 12 | . . . 2 1 9 EXPLORE 9 | . . . 2 1 6 RETURN 3 | . . . . . 3 Ally Attacks 16 | . . . 2 . 14 Total Damage . | . . . . . . Kills . | . . . . . . Allies Corrupted . | . . . . . . Allies Melted . | . . . . . . Intel | -11 -10 -10 -9 -9 -8 ------- Run | Jun Mat Min Mat Min Mat Robot Analysis Total 4 | . 1 . 1 . 2 Derelict Logs Recovered 2 | . . 1 . 1 . Drone Launches 19 | . . . 2 2 15 Drone Recoveries 3 | . . . . . 3 Exploration | -11 -10 -10 -9 -9 -8 ------------- Run | Jun Mat Min Mat Min Mat Turns Passed 1225 | 41 212 184 357 172 259 Spaces Moved 1211 | 31 169 174 400 172 265 Core 1 | 1 . . . . . Treads . | . . . . . . Legs . | . . . . . . Wheels 463 | 30 169 174 90 . . Hover . | . . . . . . Flight 747 | . . . 310 172 265 Fastest Speed 34 | 50 80 80 37 34 34 Average Speed 53 | 79 80 86 47 34 34 Slowest Speed 120 | 80 80 95 120 37 37 Overloaded Moves . | . . . . . . Propulsion Burnouts . | . . . . . . Robots Hopped 2 | . . . 1 . 1 Cave-ins Triggered . | . . . . . . Exploration Rate (%) 44 | 3 44 44 56 94 28 Regions Visited 5 Branch Regions 2 Pre-discovered Areas 1 | . 1 . . . . Known Exits Taken . | . . . . . . Unknown Exits Taken 5 | 1 1 1 1 1 . Scrap Searched 3 | . . . . 3 . Spaces Dug . | . . . . . . Terrain Destroyed 190 | . 33 59 68 1 29 Melee . | . . . . . . Projectile . | . . . . . . AOE 190 | . 33 59 68 1 29 Terrain Rammed . | . . . . . . Walls Destroyed . | . . . . . . Machines Disabled . | . . . . . . Actions | -11 -10 -10 -9 -9 -8 --------- Run | Jun Mat Min Mat Min Mat Total 1586 | 40 213 198 507 268 360 Wait 155 | . 9 12 31 79 24 Move 1202 | 30 168 173 397 171 263 Hop 2 | . . . 1 . 1 Pick Up 11 | . . 1 2 1 7 Fast Attach 19 | 4 1 1 5 1 7 Attach 4 | . . . 1 1 2 Detach 1 | . . . . 1 . Swap 1 | . . 1 . . . Drop 15 | 1 . 1 5 1 7 Fire 149 | 5 32 8 49 10 45 Melee . | . . . . . . Ram . | . . . . . . Kick . | . . . . . . Crush . | . . . . . . Escape Stasis . | . . . . . . Rewire . | . . . . . . Trap 3 | . . . . 3 . Miscellaneous 24 | . 3 1 16 . 4 Route ------- -11/Junkyard -10/Materials (discovered 2 exits: *Min x2) -10/Mines -9/Materials (discovered 3 exits: *Mat / [*Min x2]) -9/Mines (discovered 2 exits: *Mat x2) -8/Materials History --------- Turn | Location | Event 8 | -11/Junkyard | Discovered new exit (range 16) 42 | -11/Junkyard | Entered Materials 152 | -10/Materials | Discovered new exit (range 7) 173 | -10/Materials | Discovered new exit (range 13) 254 | -10/Materials | Entered Mines 255 | -10/Mines | Assembled infested the area 260 | -10/Mines | Assisted by a Guerilla fighting off Assembled 261 | -10/Mines | Received a Rocket Launcher from a helpful Derelict 262 | -10/Mines | Upgraded with Propulsion slot (x1) 262 | -10/Mines | Upgraded with Utility slot (x1) 262 | -10/Mines | Upgraded with Weapon slot (x1) 306 | -10/Mines | Build established: Mutant 312 | -10/Mines | Discovered new exit (range 12) 345 | -10/Mines | Found the Drone Emporium 349 | -10/Mines | Found Prototype Device 349 | -10/Mines | Identified Bomb Drone Bay 382 | -10/Mines | Learned 2 Materials zone layouts 384 | -10/Mines | Reached level 2 438 | -10/Mines | Entered Materials 440 | -9/Materials | Reached level 3 537 | -9/Materials | Reached level 4 602 | -9/Materials | Discovered new exit (range 17) 665 | -9/Materials | Discovered new exit (range 11) 741 | -9/Materials | Core integrity fell below 50% 746 | -9/Materials | Reached level 5 755 | -9/Materials | Discovered new exit (range 8) 795 | -9/Materials | Entered Mines 804 | -9/Mines | Upgraded with Propulsion slot (x1) 834 | -9/Mines | Learned Materials interactive machine intel 852 | -9/Mines | Discovered new exit (range 10) 853 | -9/Mines | Found a hidden stash of uninstalled traps 885 | -9/Mines | Discovered new exit (range 45) 967 | -9/Mines | Entered Materials 967 | -8/Materials | Accompanied by 2 allies 968 | -8/Materials | Loaded intel: 19 interactive machine locations 968 | -8/Materials | Core integrity fell below 50% 969 | -8/Materials | Reached level 6 1007 | -8/Materials | Reached level 7 1011 | -8/Materials | Upgraded with Utility slot (x1) 1011 | -8/Materials | Upgraded with Utility slot (x1) 1059 | -8/Materials | Core integrity fell below 20% 1204 | -8/Materials | Reached level 8 1226 | -8/Materials | Destroyed by H-55 Commando with Gauss Rifle Last Messages --------------- 01204_ Reached level 8. >>Force(Extract) EXTRACTED[Lrn. Tractor Beam] EXTRACTED[Adv. Visual Processing Unit] EXTRACTED[Pulse Rifle] EXTRACTED[Flak Cannon] EXTRACTED[Rocket Launcher] EXTRACTED[ECM Suite] EXTRACTED[Hrd. Medium Armor Plating] EXTRACTED[Insulated Plating] EXTRACTED[Terrain Scanner] EXTRACTED[Imp. Terrain Scan Processor] EXTRACTED[Hpw. Shotgun] EXTRACTED[Trap Extractor] 01204_ ALERT: Suspicious activity at Scanalyzer M001. Dispatching Investigation squad. 01209_ Processing Tank disabled. 01215_ Terminal disabled. 01225_ Fusion Modulator explodes. 01226_ Penetrated by Slug. Map ----- +----------------------------------------------------+ | ???????????????????????????????????????????????# # | | ??????????????????????????????????????????????## | | ??????????????????????????????????????????????# # | | ??????????????????????????????????????????????## | | ???????????????????????????????????????????????# # | | ???????????????????????????????????????????????# | | ???????????????????????????????????????????????# | | ???????????????????????????????????????????????## | | ???????????????????????? ????????????????????# | | ???????????????????????# ????????????????????### | | ???????????????????????# ??????????????????????# | | ???????????????????????# ##########???????###### | | ???????????????????????# # #??????## ### | | ???????????????????????# # """"" #??????# # | | ???????????????????????+ # "" "" #??????# | | ???????????????????????# # "" "" #??????# | | ???????????????????????# # #??????# # % | | ???????????????????????# # "" #??????## %[= | | ???????????????????????# # * "" #??????# # *%% | | ???????????????????????# # "" #??????### ! | | ???????????????????????# # #??????# #+### | | ???????????????????????# ###a############### ### | | ???????????????????????# *% %%= | | ?????????????????####### h = ^*%![= | | ????????????# * =[%*%% | | ????????????# #######@############### ## | | ?????????????????????# #?????????# ## | | ???????????????????# ; #?????????#[[! !##* | | ???????????????????# ; #?????????#[[!!!!##% | | ???????????????????# ; [ #?????????######### | | ???????????????????# ; #?????????????????# | | ???????????????????# ; *#?????????????????# | | ???????????????????# ; #????????????????## | | ???????????????????# ; #????????????????## | | ???????????????????# ; #????"""?????????# = | | ???????????????????# ;;;;;;;;##????"""?????????# | | ???????????????????#### ###?????"""????????## | | ??????????????????????######??????????????????# | | ???????????????????????????????????"""????????# | | ???????????????????????????????????"""??????### # | | ???????????????????????????????????"""??????# | | ????????????????????????????????????????????# | | ???????????????????????????????????"""???? | | ???????????????????????????????????"""????## | | ????????????????????"""????????????"""?????# | | ???????????????????"""""???????????????????# | | ???????????????????"""""???????????????????# | | ???????????????????"""""???????????????? | | ????????????????????"""????????????????? | | ???????????????????????????????????????? | +----------------------------------------------------+ Best States ------------- Heat Dissipation 43 Energy Generation 19 Energy Capacity 300 Matter Stores 300 Matter Capacity 300 Sight Range 17 Robot Scan Range 15 Terrain Scan Density 310 Propulsion Shielding 66 Utility Shielding 33 Evasion (%) 63 Targeting Accuracy 8 Armor Integrity Analysis 30 Offensive Hacking 10 Defensive Hacking 5 Item Schematics ----------------- Lrn. Tractor Beam | -8/Materials | Extracted Adv. Visual Processing Unit | -8/Materials | Extracted Pulse Rifle | -8/Materials | Extracted Flak Cannon | -8/Materials | Extracted Rocket Launcher | -8/Materials | Extracted ECM Suite | -8/Materials | Extracted Hrd. Medium Armor Plating | -8/Materials | Extracted Insulated Plating | -8/Materials | Extracted Terrain Scanner | -8/Materials | Extracted Imp. Terrain Scan Processor | -8/Materials | Extracted Hpw. Shotgun | -8/Materials | Extracted Trap Extractor | -8/Materials | Extracted Robot Schematics ------------------ None Fabricated ------------ Nothing Alien Tech Used ----------------- None Achievements -------------- None Challenges ------------ None RPGLIKE | -11 -10 -10 -9 -9 -8 --------- Run | Jun Mat Min Mat Min Mat Levels Raised 7 | . . 1 3 . 3 XP Earned 13810 | 3000 780 1275 4460 800 3495 XP Spent 11890 | . . 2920 4510 800 3660 Upgrades 34 | . . 11 14 1 8 Propulsion Slot 2 | . . 1 . 1 . Utility Slot 3 | . . 1 . . 2 Weapon Slot 1 | . . 1 . . . Core Integrity 4 | . . . . . 4 Heat Dissipation 3 | . . . 3 . . Energy Generation 1 | . . . 1 . . Energy Storage 1 | . . . 1 . . Mass Support 2 | . . . 2 . . Inventory Capacity 2 | . . 1 . . 1 Sight Range 1 | . . 1 . . . Terrain Scan Density 3 | . . 3 . . . Ranged Accuracy 2 | . . 1 1 . . Hack Attack % 2 | . . 1 1 . . Hack Defense % 1 | . . 1 . . . KI Damage % 4 | . . . 3 . 1 TH Damage % 2 | . . . 2 . . Protomatter Created 173 | . . 6 167 . . Integrity Restored 522 | . 72 18 348 . 84 Core 522 | . 72 18 348 . 84 Protomatter Decayed 166 | . 10 50 77 . 29 Game ------ Seed FusionNavigationEngine Manual? 0 Play Time 00:22:55 Cumulative 339.6 hours Start 2023.02.19 @ 01:15:20 End 2023.02.19 @ 01:37:57 Sessions 1 Manual Loads 0 Difficulty Rogue Special Mode Winter2019/RPGLIKE Game No. 408 Rogue 408 Adventurer 0 Explorer 0 Win Type - Total 0 Types 0/0/0/0/0/0/0/0/0 Lore% 49 Gallery% 72 Achievement% 60 Wizard Run 0 Options --------- ASCII 0 Keyboard 0 Movement Mouse Keybinds 0 Fullscreen 2 Font 24/Smallcaps Map View 76x50 Tactical HUD 1 Map Filters NONE Filters NONE Steam 1 RUN: 6c23aee4-9afa-4ffa-85be-85f7a3d5cca4